bitfinex/quotes_BTCUSD_20210101
["timestamp","ask_amount","ask_price","bid_price","bid_amount"]
[1609509430469,0.22653133,29489.0,29488.0,2.59444301]
[1609509430866,0.22653133,29489.0,29488.0,2.79444301]
[1609509431268,0.22653133,29489.0,29488.0,2.59444301]
[1609509432073,0.22653133,29489.0,29488.0,2.79444301]
[1609509432270,0.22653133,29489.0,29488.0,2.59444301]
[1609509433368,0.22653133,29489.0,29488.0,2.79444301]
[1609509433600,0.22653133,29489.0,29488.0,2.59444301]
[1609509436102,0.22653133,29489.0,29488.0,2.58944301]
[1609509436802,0.22653133,29489.0,29488.0,2.25944301]
[1609509437507,0.22653133,29489.0,29488.0,2.45944301]
[1609509437709,0.22653133,29489.0,29488.0,3.20944301]
[1609509438166,0.10291863,29489.0,29488.0,3.20944301]
[1609509438357,0.10291863,29489.0,29488.0,3.33944301]
[1609509438856,0.10291863,29489.0,29488.0,3.53944301]
[1609509439770,0.10291863,29489.0,29488.0,3.33944301]
[1609509440070,0.10291863,29489.0,29488.0,3.53944301]
[1609509440669,0.10291863,29489.0,29488.0,4.88944301]
[1609509440869,0.10291863,29489.0,29488.0,3.53944301]
[1609509441571,0.10291863,29489.0,29488.0,2.58944301]
[1609509442369,0.10291863,29489.0,29488.0,2.78944301]
[1609509442570,0.10291863,29489.0,29488.0,2.79361147]
[1609509442770,0.10291863,29489.0,29488.0,4.09361147]
[1609509444104,0.10291863,29489.0,29488.0,2.79361147]
[1609509444704,0.10291863,29489.0,29488.0,4.19361147]
[1609509444901,0.10291863,29489.0,29488.0,2.79361147]
[1609509445604,0.10291863,29489.0,29488.0,3.74361147]
[1609509446803,0.10291863,29489.0,29488.0,2.79361147]
[1609509447604,0.10291863,29489.0,29488.0,4.14361147]
[1609509447906,0.10291863,29489.0,29488.0,5.13361147]
[1609509448307,0.10291863,29489.0,29488.0,5.16707959]
[1609509449126,0.10291863,29489.0,29488.0,3.81707959]
[1609509449324,0.10291863,29489.0,29488.0,3.78361147]
[1609509449734,0.04291863,29489.0,29488.0,7.78361147]
[1609509449931,0.12535162,29489.0,29488.0,7.17358959]
[1609509450428,0.04291863,29489.0,29488.0,7.17358959]
[1609509450626,0.04145805,29489.0,29488.0,5.22358959]
[1609509450829,0.23966201,29490.0,29489.0,4.79]
[1609509451030,0.23966201,29490.0,29489.0,5.12]
[1609509451429,0.41457353,29490.0,29489.0,4.13]
[1609509451832,0.41457353,29490.0,29489.0,4.125]
[1609509452030,0.41457353,29490.0,29489.0,4.8022]
[1609509452429,0.40957353,29490.0,29489.0,5.7922]
[1609509453597,0.40957353,29490.0,29489.0,5.82566812]
[1609509453995,0.40957353,29490.0,29489.0,5.7922]
[1609509455300,0.40813807,29490.0,29489.0,5.7922]
[1609509455508,0.23322655,29490.0,29489.0,5.7922]
[1609509455903,0.23322655,29490.0,29489.0,5.82566812]
[1609509456510,0.08318817,29493.0,29490.0,6.29]
[1609509456709,0.000804,29493.0,29491.0,3.1]
[1609509457010,0.000804,29493.0,29492.0,6.60383812]
[1609509457505,0.17568533,29493.0,29492.0,7.27063812]
[1609509458333,0.000804,29493.0,29492.0,7.27063812]
[1609509460235,0.000804,29493.0,29492.0,6.28563812]
[1609509460432,0.000804,29493.0,29492.0,7.27063812]
[1609509462237,0.000804,29493.0,29492.0,6.95923812]
[1609509462436,0.000804,29493.0,29492.0,7.94423812]
[1609509462636,0.000804,29493.0,29492.0,7.91077]
[1609509462838,0.00120418,29494.0,29493.0,4.6]
[1609509463139,0.00120418,29494.0,29493.0,3.88]
[1609509465860,0.00120418,29494.0,29493.0,0.33]
[1609509466461,0.00120418,29494.0,29493.0,1.08]
[1609509466864,0.17626568,29494.0,29493.0,1.08]
[1609509467869,0.00120418,29494.0,29493.0,1.08]
[1609509468163,0.00120418,29494.0,29493.0,1.0948511]
[1609509468367,0.08269953,29498.0,29494.0,1.8]
[1609509468368,0.06793571,29498.0,29494.0,1.8]
[1609509468562,0.06793571,29498.0,29495.0,0.33]
[1609509468766,0.00100001,29506.0,29496.0,0.5079]
[1609509468962,0.15829839,29499.0,29496.0,1.0379]
[1609509469169,0.17486359,29498.0,29497.0,0.33]
[1609509469364,0.17486359,29498.0,29497.0,0.9602]
[1609509470067,0.17486359,29498.0,29497.0,1.6573]
[1609509470269,0.17486359,29498.0,29497.0,2.11]
[1609509470764,0.16986359,29498.0,29497.0,2.11]
[1609509473592,0.16486359,29498.0,29497.0,2.11]
[1609509475090,0.16507323,29498.0,29497.0,2.11]
[1609509478502,0.28866561,29498.0,29497.0,2.11]
[1609509478724,0.16507323,29498.0,29497.0,2.11]
[1609509479329,0.2886989,29498.0,29497.0,2.11]
[1609509481730,0.16507323,29498.0,29497.0,2.11]
[1609509482229,0.2887204,29498.0,29497.0,2.11]
[1609509482460,0.16507323,29498.0,29497.0,2.11]
[1609509483195,0.16007323,29498.0,29497.0,2.11]
[1609509484192,0.62851914,29498.0,29497.0,2.11]
[1609509484402,0.62851914,29498.0,29497.0,1.78]
[1609509484802,0.62351914,29498.0,29497.0,1.78]
[1609509487406,0.62351914,29498.0,29497.0,1.775]
[1609509487812,0.77851914,29498.0,29497.0,1.775]
[1609509488821,0.77851914,29498.0,29497.0,1.825]
[1609509491126,0.70851914,29498.0,29497.0,1.825]
[1609509491622,0.55351914,29498.0,29497.0,1.825]
[1609509498135,2.54124894,29498.0,29497.0,1.1998]
[1609509498333,2.68624894,29498.0,29497.0,0.05]
[1609509498746,3.01622081,29498.0,29497.0,0.05]
[1609509499037,3.14609037,29498.0,29497.0,0.05]
[1609509499454,3.66609037,29498.0,29497.0,0.05]
[1609509503564,3.99543067,29498.0,29497.0,0.05]
[1609509505471,3.66609037,29498.0,29497.0,0.05]
[1609509508675,3.14609037,29498.0,29497.0,0.05]
[1609509508894,3.66609037,29498.0,29497.0,0.05]
[1609509510203,3.99525054,29498.0,29497.0,0.05]
[1609509510897,6.287915,29498.0,29497.0,0.05]
[1609509511399,7.84137851,29498.0,29497.0,0.05]
[1609509511596,5.21955388,29498.0,29497.0,0.05]
[1609509512001,4.66609037,29498.0,29497.0,0.05]
[1609509515880,4.99503808,29498.0,29497.0,0.05]
[1609509518502,4.66609037,29498.0,29497.0,0.05]
[1609509518899,3.66609037,29498.0,29497.0,0.05]
[1609509519905,3.58799037,29498.0,29497.0,0.05]
[1609509524030,3.58799037,29498.0,29497.0,0.025]
[1609509527437,1.636236,29498.0,29497.0,0.025]
[1609509529088,2.636236,29498.0,29497.0,0.025]
[1609509530912,0.982967,29498.0,29497.0,0.025]
[1609509531308,1.127467,29498.0,29497.0,0.025]
[1609509532108,1.350067,29498.0,29497.0,0.025]
[1609509532307,1.87878555,29498.0,29497.0,0.025]
[1609509533105,1.870067,29498.0,29497.0,0.025]
[1609509534844,0.362969,29498.0,29497.0,0.025]
[1609509535251,0.507469,29498.0,29497.0,0.02]
[1609509536245,0.77205502,29522.0,29497.0,0.02]
[1609509536550,0.5081,29509.0,29499.0,0.33346812]
[1609509536747,0.14455829,29500.0,29499.0,0.1]
[1609509536943,0.42663529,29500.0,29499.0,0.3]
[1609509537138,0.32970729,29499.0,29497.0,0.05346812]
[1609509537336,0.282077,29498.0,29497.0,0.05346812]
[1609509538140,0.282077,29498.0,29497.0,0.02]
[1609509538335,0.282077,29498.0,29497.0,0.2]
[1609509540962,0.277077,29498.0,29497.0,0.2]
[1609509541464,0.277077,29498.0,29497.0,0.195]
[1609509542362,0.277077,29498.0,29497.0,0.015]
[1609509542767,0.42341976,29498.0,29497.0,0.015]
[1609509546733,0.42341976,29498.0,29497.0,0.155]
[1609509551861,0.42341976,29498.0,29497.0,0.15]
[1609509553365,0.42341976,29498.0,29497.0,0.25]
[1609509553988,0.42341976,29498.0,29497.0,0.245]
[1609509554789,0.42341976,29498.0,29497.0,0.145]
[1609509555592,0.42341976,29498.0,29497.0,0.005]
[1609509557388,0.14634276,29498.0,29496.0,0.08095846]
[1609509557693,0.277076,29497.0,29496.0,0.08095846]
[1609509558361,0.62186547,29497.0,29496.0,0.08095846]
[1609509558562,0.9514397,29497.0,29496.0,0.08095846]
[1609509558756,0.7514397,29497.0,29496.0,0.08095846]
[1609509559155,0.7491323,29497.0,29496.0,0.08095846]
[1609509559356,0.41955807,29497.0,29496.0,0.08095846]
[1609509559759,0.41955807,29497.0,29496.0,0.10652257]
[1609509561161,0.41955807,29497.0,29496.0,0.10152257]
[1609509561761,0.45491803,29497.0,29496.0,0.10152257]
[1609509570023,0.41955807,29497.0,29496.0,0.10152257]
[1609509570421,0.7490201,29497.0,29496.0,0.10152257]
[1609509570915,0.7490201,29497.0,29496.0,0.20152257]
[1609509571116,0.7490201,29497.0,29496.0,0.10152257]
[1609509571916,0.7490201,29497.0,29496.0,0.20152257]
[1609509572617,0.7490201,29497.0,29496.0,0.10152257]
[1609509573637,0.7490201,29497.0,29496.0,1.18652257]
[1609509573942,0.7490201,29497.0,29496.0,2.2547633]
[1609509574144,0.4742515,29497.0,29496.0,2.6177383]
[1609509574340,0.14478947,29497.0,29496.0,2.6177383]
[1609509577366,0.26833604,29497.0,29496.0,2.6177383]
[1609509578295,0.14478947,29497.0,29496.0,2.6177383]
[1609509579596,0.14478947,29497.0,29496.0,1.2312383]
[1609509580598,0.14478947,29497.0,29496.0,1.4312383]
[1609509581200,0.14478947,29497.0,29496.0,3.0662383]
[1609509582000,0.14478947,29497.0,29496.0,2.4162383]
[1609509582703,0.14478947,29497.0,29496.0,1.2312383]
[1609509583009,0.14478947,29497.0,29496.0,0.7682633]
[1609509584126,0.41955747,29497.0,29496.0,0.7682633]
[1609509585631,0.54303616,29497.0,29496.0,0.7682633]
[1609509587929,0.41955747,29497.0,29496.0,0.7682633]
[1609509588522,0.14478947,29497.0,29496.0,0.7682633]
[1609509590473,0.14478947,29497.0,29496.0,2.1112433]
[1609509590674,0.14478947,29497.0,29496.0,2.1801633]
[1609509591074,0.14478947,29497.0,29496.0,4.81363142]
[1609509591569,0.14478947,29497.0,29496.0,5.4206633]
[1609509591772,0.14478947,29497.0,29496.0,2.8206633]
[1609509591968,0.14478947,29497.0,29496.0,3.6706633]
[1609509593789,0.13478947,29497.0,29496.0,3.6706633]
[1609509594093,0.13478947,29497.0,29496.0,2.8206633]
[1609509598800,0.13478947,29497.0,29496.0,3.8206633]
[1609509599026,0.13478947,29497.0,29496.0,2.7667433]
[1609509600123,0.13478947,29497.0,29496.0,3.2267433]
[1609509600726,0.13478947,29497.0,29496.0,4.2117433]
[1609509600923,0.13478947,29497.0,29496.0,3.2267433]
[1609509601328,0.13478947,29497.0,29496.0,4.2117433]
[1609509601729,0.13478947,29497.0,29496.0,3.2117433]
[1609509601730,0.25839676,29497.0,29496.0,3.2117433]
[1609509601927,0.25839676,29497.0,29496.0,2.2267433]
[1609509602130,0.13444141,29497.0,29496.0,2.2267433]
[1609509602930,0.25807832,29497.0,29496.0,2.2267433]
[1609509603961,0.25807832,29497.0,29496.0,2.4267433]
[1609509604259,0.13444141,29497.0,29496.0,2.4267433]
[1609509604972,0.13444141,29497.0,29496.0,2.2267433]
[1609509605370,0.13444141,29497.0,29496.0,2.4267433]
[1609509606773,0.13444141,29497.0,29496.0,3.2117433]
[1609509607074,0.13544141,29497.0,29496.0,2.4267433]
[1609509608698,0.13444141,29497.0,29496.0,3.4117433]
[1609509608900,0.25813535,29497.0,29496.0,2.4267433]
[1609509609302,0.25913535,29497.0,29496.0,2.4267433]
[1609509609706,0.25913535,29497.0,29496.0,2.2267433]
[1609509610000,0.25913535,29497.0,29496.0,3.2117433]
[1609509610205,0.25913535,29497.0,29496.0,3.4117433]
[1609509610603,0.25913535,29497.0,29496.0,2.4267433]
[1609509611003,0.13544141,29497.0,29496.0,2.4267433]
[1609509611603,0.13444141,29497.0,29496.0,2.4267433]
[1609509611801,0.13444141,29497.0,29496.0,2.4067433]
[1609509612200,0.13544141,29497.0,29496.0,2.4067433]
[1609509612802,0.13544141,29497.0,29496.0,3.6067433]
[1609509613808,0.13544141,29497.0,29496.0,2.4067433]
[1609509614727,0.13444141,29497.0,29496.0,7.5509133]
[1609509614932,0.13544141,29497.0,29496.0,7.58438142]
[1609509615133,0.13544141,29497.0,29496.0,7.66438142]
[1609509616430,0.13544141,29497.0,29496.0,8.66438142]
[1609509616628,0.13444141,29497.0,29496.0,8.66438142]
[1609509617027,0.13544141,29497.0,29496.0,8.66438142]
[1609509617636,0.001,29497.0,29496.0,8.66438142]
[1609509617837,0.00029517,29499.0,29498.0,0.17662246]
[1609509618041,0.14455829,29500.0,29498.0,4.68960246]
[1609509618235,0.14455829,29500.0,29499.0,4.79644812]
[1609509618491,0.14455829,29500.0,29499.0,5.47354812]
[1609509618691,0.28591619,29500.0,29499.0,7.11754812]
[1609509619087,0.28591619,29500.0,29499.0,8.06908]
[1609509619285,0.28591619,29500.0,29499.0,3.86908]
[1609509620287,0.28630682,29500.0,29499.0,3.86908]
[1609509620689,0.28630682,29500.0,29499.0,3.37218]
[1609509621431,0.11860337,29503.0,29502.0,4.81298]
[1609509621601,0.11860337,29503.0,29502.0,6.86482]
[1609509621793,0.11860337,29503.0,29502.0,7.11076]
[1609509622007,0.00029521,29506.0,29505.0,2.91298]
[1609509622199,0.2193,29511.0,29505.0,4.21688]
[1609509622597,0.3298539,29512.0,29508.0,0.677]
[1609509622801,0.00029521,29511.0,29508.0,0.877]
[1609509622999,0.274768,29512.0,29509.0,0.7015]
[1609509623811,0.32933107,29516.0,29510.0,0.6798]
[1609509624012,0.274768,29515.0,29511.0,0.225]
[1609509624205,0.274768,29515.0,29511.0,0.425]
[1609509625608,0.264768,29515.0,29511.0,0.425]
[1609509626007,0.259768,29515.0,29511.0,0.425]
[1609509627107,0.259768,29515.0,29511.0,0.225]
[1609509627315,0.259793,29512.0,29511.0,0.225]
[1609509627518,0.559793,29512.0,29511.0,0.225]
[1609509627913,0.259793,29512.0,29511.0,0.225]
[1609509629129,0.259793,29512.0,29511.0,0.425]
[1609509629529,0.259793,29512.0,29511.0,0.225]
[1609509629735,0.9603884,29512.0,29511.0,0.225]
[1609509631335,0.9603884,29512.0,29510.0,0.6798]
[1609509636582,0.13774166,29511.0,29510.0,0.6798]
[1609509636781,0.39753466,29511.0,29510.0,0.6798]
[1609509636979,0.39753466,29511.0,29510.0,0.8498]
[1609509638078,0.39253466,29511.0,29510.0,0.8498]
[1609509639210,0.39253466,29511.0,29510.0,0.8448]
[1609509639711,0.39253466,29511.0,29510.0,0.8398]
[1609509640307,0.39253466,29511.0,29510.0,0.6698]
[1609509640908,0.38753466,29511.0,29510.0,0.6698]
[1609509644139,0.8844542,29511.0,29507.0,0.677]
[1609509644338,0.95671254,29508.0,29498.0,0.17662246]
[1609509644550,0.31029299,29500.0,29499.0,0.4925]
[1609509644746,0.73587599,29500.0,29499.0,0.4925]
[1609509644944,0.73175879,29500.0,29499.0,0.4925]
[1609509645641,0.86369294,29500.0,29499.0,0.4925]
[1609509647044,0.56369294,29500.0,29499.0,0.4925]
[1609509647547,0.56369294,29500.0,29499.0,0.00370664]
[1609509647748,0.56369294,29500.0,29498.0,0.17662246]
[1609509647956,0.259793,29499.0,29498.0,0.37662246]
[1609509648146,0.259793,29499.0,29498.0,0.37162246]
[1609509648567,0.39785541,29499.0,29498.0,0.37162246]
[1609509649366,0.39785541,29499.0,29498.0,2.14892246]
[1609509649591,0.13806241,29499.0,29498.0,2.94174146]
[1609509650085,0.13806241,29499.0,29498.0,3.63954146]
[1609509650292,0.08230587,29501.0,29498.0,3.63954146]
[1609509650481,0.08230587,29501.0,29499.0,0.645]
[1609509650680,0.259793,29500.0,29499.0,0.645]
[1609509650984,0.259793,29500.0,29499.0,0.62]
[1609509651883,0.61779053,29500.0,29499.0,0.62]
[1609509652588,0.70009356,29500.0,29499.0,0.62]
[1609509652788,0.61779053,29500.0,29499.0,0.62]
[1609509653187,0.700086,29500.0,29499.0,0.62]
[1609509653414,0.61779053,29500.0,29499.0,0.62]
[1609509654009,0.70007799,29500.0,29499.0,0.62]
[1609509654511,0.61779053,29500.0,29499.0,0.62]
[1609509655521,0.259793,29499.0,29498.0,0.84892246]
[1609509656110,0.249793,29499.0,29498.0,0.84892246]
[1609509656317,0.38730575,29499.0,29498.0,0.84892246]
[1609509656816,0.38730575,29499.0,29498.0,1.08392246]
[1609509657613,0.38730575,29499.0,29498.0,1.76042246]
[1609509659834,0.38730575,29499.0,29498.0,1.08392246]
[1609509660039,0.59969575,29499.0,29498.0,1.08392246]
[1609509660238,0.59969575,29499.0,29498.0,0.84892246]
[1609509661529,1.59969575,29499.0,29498.0,0.84892246]
[1609509664506,1.68198252,29499.0,29498.0,0.84892246]
[1609509664808,1.59969575,29499.0,29498.0,0.82392246]
[1609509665200,1.68198426,29499.0,29498.0,0.82392246]
[1609509666206,1.59969575,29499.0,29498.0,0.82392246]
[1609509666433,1.68198889,29499.0,29498.0,0.82392246]
[1609509667842,1.68198889,29499.0,29498.0,0.14662246]
[1609509668537,1.59969575,29499.0,29498.0,0.14662246]
[1609509672583,1.59869575,29499.0,29498.0,0.14662246]
[1609509673387,1.79869575,29499.0,29498.0,0.14662246]
[1609509673591,1.80524748,29499.0,29498.0,0.14662246]
[1609509673794,0.49275792,29498.0,29496.0,0.02557576]
[1609509673995,0.75632073,29497.0,29496.0,0.02557576]
[1609509674493,1.55649425,29497.0,29496.0,0.02557576]
[1609509674985,1.22043718,29497.0,29496.0,0.02557576]
[1609509675384,1.54986063,29497.0,29496.0,0.02557576]
[1609509676012,1.22698891,29497.0,29496.0,0.02557576]
[1609509676415,1.55629475,29497.0,29496.0,0.02557576]
[1609509676819,4.21944491,29497.0,29496.0,0.02557576]
[1609509677020,8.21944491,29497.0,29496.0,0.02557576]
[1609509677326,0.442212,29493.0,29482.0,0.0002]
[1609509677524,0.75061201,29489.0,29482.0,0.0002]
[1609509677728,0.242212,29485.0,29482.0,0.0002]
[1609509677922,0.242212,29483.0,29482.0,0.0002]
[1609509678122,0.24838109,29483.0,29482.0,0.4702]
[1609509678515,0.232212,29483.0,29482.0,0.4702]
[1609509679132,0.37087248,29483.0,29482.0,0.4702]
[1609509679329,0.37087248,29483.0,29482.0,0.0002]
[1609509679889,0.23837764,29483.0,29482.0,0.0002]
[1609509680388,0.23632059,29483.0,29482.0,0.0002]
[1609509680886,0.23132059,29483.0,29482.0,0.0002]
[1609509681184,0.2292657,29483.0,29482.0,0.0002]
[1609509681786,0.23337311,29483.0,29482.0,0.0002]
[1609509681982,0.22837311,29483.0,29482.0,0.0002]
[1609509682289,0.2242657,29483.0,29482.0,0.0002]
[1609509682884,0.55606872,29483.0,29482.0,0.0002]
[1609509683087,1.50606872,29483.0,29480.0,9.9412]
[1609509683323,0.222199,29481.0,29480.0,9.9412]
[1609509684129,0.522199,29481.0,29480.0,9.9312]
[1609509684823,0.522199,29481.0,29480.0,9.9262]
[1609509684824,0.52425098,29481.0,29480.0,9.9262]
[1609509685225,0.52835498,29481.0,29480.0,9.9262]
[1609509685722,0.88764428,29481.0,29480.0,9.925]
[1609509685928,2.36118546,29481.0,29480.0,9.7178]
[1609509686130,3.2694473,29481.0,29480.0,9.67210488]
[1609509686529,3.82995651,29481.0,29480.0,9.67210488]
[1609509686726,7.48180441,29481.0,29480.0,9.67210488]
[1609509686925,8.34995651,29481.0,29480.0,9.29430488]
[1609509687126,8.34995651,29481.0,29480.0,9.09050488]
[1609509687127,8.15323238,29481.0,29480.0,9.09050488]
[1609509687325,8.05323238,29481.0,29480.0,7.89968488]
[1609509687529,8.05323238,29481.0,29480.0,4.82868183]
[1609509687739,0.41249793,29476.0,29474.0,0.0006]
[1609509688053,1.0708,29464.0,29463.0,2.865207]
[1609509688331,1.0708,29464.0,29463.0,2.10451742]
[1609509688332,3.7095404,29464.0,29463.0,2.10451742]
[1609509688531,3.7095404,29464.0,29463.0,1.93969988]
[1609509688532,9.03069015,29464.0,29463.0,1.93969988]
[1609509688730,9.83069015,29464.0,29463.0,1.24669987]
[1609509688944,10.1387113,29464.0,29463.0,0.76939987]
[1609509689245,10.6287113,29464.0,29463.0,0.05662345]
[1609509689453,10.6287113,29464.0,29455.0,0.0004]
[1609509689454,0.62,29462.0,29455.0,0.0004]
[1609509689659,1.0,29452.0,29423.0,0.297]
[1609509689851,0.38972429,29444.0,29432.0,0.0008]
[1609509690164,0.38972429,29444.0,29425.0,0.0006]
[1609509690165,0.51567739,29444.0,29425.0,0.0006]
[1609509690352,0.222199,29440.0,29428.0,0.03346812]
[1609509690652,0.422199,29436.0,29422.0,0.12]
[1609509690842,0.5703511,29434.0,29422.0,0.12]
[1609509691043,0.49148302,29433.0,29422.0,0.12]
[1609509691241,0.52900202,29432.0,29422.0,0.12]
[1609509691445,0.222199,29430.0,29422.0,0.5943]
[1609509691651,0.30680302,29429.0,29423.0,0.608136]
[1609509691852,0.64364718,29425.0,29422.0,0.363727]
[1609509692049,0.64385996,29426.0,29423.0,5.355]
[1609509692243,0.64385996,29426.0,29424.0,0.363727]
[1609509692548,0.44582749,29435.0,29424.0,0.358927]
[1609509692752,0.44582749,29435.0,29427.0,0.363727]
[1609509692958,0.3481521,29434.0,29431.0,0.0004]
[1609509693158,0.30680302,29433.0,29432.0,1.463672]
[1609509693451,0.75440843,29433.0,29432.0,1.1]
[1609509693672,0.363672,29433.0,29429.0,0.0004]
[1609509693872,0.363672,29432.0,29429.0,0.0004]
[1609509694271,0.75409059,29432.0,29423.0,4.63006447]
[1609509694465,0.30680302,29431.0,29428.0,0.0004]
[1609509694677,0.363672,29430.0,29428.0,0.0004]
[1609509694981,0.71092221,29429.0,29428.0,0.0004]
[1609509695178,0.00357172,29428.0,29423.0,3.95136447]
[1609509695377,0.363672,29427.0,29423.0,3.95136447]
[1609509695578,0.30680302,29426.0,29424.0,0.363711]
[1609509695777,0.00357172,29428.0,29424.0,0.363711]
[1609509695982,0.34831488,29425.0,29423.0,3.95136447]
[1609509696281,0.34831488,29425.0,29421.0,0.7542]
[1609509696282,0.34791488,29425.0,29424.0,5.263714]
[1609509696780,0.34201051,29427.0,29424.0,4.02339446]
[1609509697082,0.823425,29425.0,29424.0,0.0002]
[1609509697278,0.517298,29425.0,29419.0,0.9160037]
[1609509697478,0.45479869,29425.0,29419.0,0.0889674]
[1609509697980,0.2515607,29424.0,29420.0,0.363718]
[1609509698177,0.2514707,29424.0,29418.0,0.0002]
[1609509698380,0.2514707,29424.0,29419.0,0.5092]
[1609509698576,0.2514707,29424.0,29420.0,0.065436]
[1609509698781,0.24643302,29423.0,29419.0,0.1211506]
[1609509698978,0.24643302,29423.0,29422.0,0.0004]
[1609509699281,0.363729,29423.0,29422.0,0.0004]
[1609509699478,0.42377849,29424.0,29422.0,0.0004]
[1609509699685,0.58835311,29423.0,29422.0,0.0004]
[1609509699884,0.22462411,29423.0,29422.0,4.664048]
[1609509700700,0.07995599,29423.0,29422.0,3.42373713]
[1609509700898,0.07995599,29423.0,29422.0,0.0002]
[1609509701105,0.08236,29425.0,29419.0,0.1167506]
[1609509701503,0.28236,29425.0,29419.0,0.1161506]
[1609509701904,0.08236,29425.0,29419.0,0.1161506]
[1609509702099,0.00199873,29426.0,29419.0,0.0961506]
[1609509702505,0.00199881,29425.0,29419.0,0.0961506]
[1609509702708,0.20199881,29425.0,29414.0,0.81979181]
[1609509702908,0.00599478,29424.0,29414.0,0.80745546]
[1609509703103,0.20599478,29424.0,29414.0,0.7981]
[1609509703306,0.00599478,29424.0,29414.0,0.7981]
[1609509703512,0.363727,29423.0,29414.0,0.7981]
[1609509703718,0.363727,29423.0,29413.0,0.0008]
[1609509703719,0.363727,29418.0,29413.0,0.0008]
[1609509703945,3.963727,29414.0,29413.0,0.0008]
[1609509704210,5.571327,29414.0,29413.0,0.0008]
[1609509704512,5.60877251,29414.0,29413.0,0.0004]
[1609509704703,6.60877251,29414.0,29412.0,0.0008]
[1609509704925,3.6,29412.0,29398.0,0.0002]
[1609509705114,0.81903642,29398.0,29394.0,0.6339]
[1609509705320,1.18276342,29398.0,29394.0,0.0008]
[1609509705615,1.71220644,29398.0,29394.0,0.0008]
[1609509705822,1.74567456,29398.0,29394.0,0.0008]
[1609509706025,2.06067456,29398.0,29394.0,0.0008]
[1609509706233,2.10297172,29397.0,29394.0,0.0008]
[1609509706437,2.1415452,29396.0,29395.0,0.0002]
[1609509706633,3.22983132,29396.0,29389.0,0.0002]
[1609509706847,3.22983132,29396.0,29375.0,0.3869]
[1609509706848,3.10680302,29395.0,29375.0,0.3869]
[1609509707029,0.6599593,29393.0,29376.0,0.363739]
[1609509707233,0.50966978,29392.0,29376.0,0.358739]
[1609509707537,0.30680302,29391.0,29382.0,0.6497]
[1609509707731,0.20197676,29392.0,29383.0,0.358966]
[1609509708029,0.00197676,29392.0,29383.0,0.308966]
[1609509708334,0.50877855,29396.0,29383.0,0.308966]
[1609509708711,0.50680302,29395.0,29383.0,0.308966]
[1609509708916,0.30680302,29393.0,29382.0,0.6497]
[1609509709111,0.50680302,29393.0,29387.0,0.5047]
[1609509709310,0.43437,29395.0,29375.0,0.3315022]
[1609509709512,0.50680302,29396.0,29382.0,0.1]
[1609509710018,0.30680302,29394.0,29378.0,0.04]
[1609509710319,0.7881744,29392.0,29382.0,0.6797]
[1609509710612,0.7881744,29396.0,29382.0,0.6797]
[1609509710811,0.50680302,29395.0,29382.0,0.6797]
[1609509711107,0.50680302,29396.0,29382.0,0.6797]
[1609509711915,0.50877962,29396.0,29382.0,0.7797]
[1609509712110,0.50680302,29395.0,29382.0,0.6797]
[1609509712306,0.30877962,29396.0,29382.0,0.6797]
[1609509712511,0.0019766,29396.0,29382.0,0.6797]
[1609509712722,0.89497742,29397.0,29382.0,0.6797]
[1609509713010,0.89497742,29396.0,29382.0,0.6797]
[1609509713212,0.30680302,29395.0,29382.0,0.6547]
[1609509713425,0.30680302,29396.0,29382.0,0.6547]
[1609509713827,0.30878122,29396.0,29382.0,0.6547]
[1609509714630,0.00594454,29393.0,29382.0,0.6547]
[1609509715136,0.00198153,29394.0,29382.0,0.6547]
[1609509715536,0.00594689,29396.0,29382.0,0.6547]
[1609509715940,0.00594689,29396.0,29383.0,0.08]
[1609509716135,0.43827596,29390.0,29383.0,0.31314]
[1609509716337,0.43827596,29390.0,29388.0,0.1]
[1609509716646,5.96e-06,29390.0,29389.0,0.09226298]
[1609509716849,0.81098348,29398.0,29390.0,5.47726214]
[1609509717040,1.233e-05,29399.0,29398.0,0.35124426]
[1609509717250,0.01,29400.0,29398.0,0.43144426]
[1609509717447,0.07966437,29405.0,29399.0,0.59605266]
[1609509717937,0.07966437,29405.0,29400.0,0.08]
[1609509718439,0.07971841,29410.0,29399.0,0.26251627]
[1609509718841,0.07986492,29412.0,29401.0,0.1]
[1609509719046,0.07986492,29412.0,29399.0,0.26251627]
[1609509719654,0.23551868,29412.0,29400.0,0.1]
[1609509719865,0.23551868,29412.0,29398.0,0.2]
[1609509719866,0.08,29411.0,29398.0,0.2]
[1609509720066,0.363773,29409.0,29397.0,0.6933]
[1609509720361,1.4906284,29407.0,29397.0,0.6933]
[1609509720551,0.07985681,29404.0,29397.0,0.6933]
[1609509720859,0.07980544,29402.0,29391.0,0.7561]
[1609509721046,0.363773,29401.0,29391.0,0.7561]
[1609509721356,0.563773,29399.0,29391.0,0.7561]
[1609509721651,0.08,29398.0,29391.0,0.7561]
[1609509721849,0.08,29398.0,29392.0,0.025686]
[1609509721850,0.51684152,29398.0,29392.0,0.025686]
[1609509722150,0.51684152,29398.0,29392.0,0.025886]
[1609509722350,0.236801,29397.0,29392.0,0.0002]
[1609509722854,0.236801,29397.0,29391.0,0.7561]
[1609509722855,0.08,29396.0,29391.0,0.7561]
[1609509723747,0.15710373,29395.0,29391.0,0.7561]
[1609509724147,0.15710373,29395.0,29391.0,0.656787]
[1609509724350,0.15710373,29395.0,29385.0,0.5099]
[1609509724804,0.3159319,29396.0,29385.0,0.5099]
[1609509725001,0.079,29394.0,29385.0,0.5099]
[1609509725300,0.15728366,29393.0,29385.0,0.5099]
[1609509726311,0.07975018,29393.0,29385.0,0.5099]
[1609509726702,0.15915419,29392.0,29385.0,0.5099]
[1609509727106,0.15919584,29393.0,29385.0,0.5099]
[1609509727411,0.07983993,29395.0,29385.0,0.5099]
[1609509728928,0.07986257,29393.0,29385.0,0.5099]
[1609509729125,0.23475828,29394.0,29385.0,0.5099]
[1609509729626,0.2,29397.0,29385.0,0.5099]
[1609509729627,0.07991892,29393.0,29385.0,0.5099]
[1609509730425,0.08009827,29392.0,29385.0,0.5099]
[1609509730824,0.08009827,29392.0,29385.0,0.4549]
[1609509731028,0.08024086,29390.0,29385.0,0.4549]
[1609509731626,0.07914461,29390.0,29385.0,0.4549]
[1609509731827,0.07809496,29390.0,29385.0,0.4549]
[1609509732032,0.15754734,29389.0,29385.0,0.4549]